Cogmind - Beta 16.1 @@@ ROGUE MODE // 2026.03.29 @ 11:55:24 Player: celerysam Result: Destroyed by P-60 Hacker with Shock Rifle Performance ------------- Evolutions (4) 2000 Regions Visited (7) 1400 Robots Destroyed (64) 320 Value Destroyed (2325) 2325 Prototype IDs (25) 500 Alien Tech Used (0) 0 Bonus (520) 520 TOTAL SCORE: 7065 Bonus ------- High Alert Combat Kills 220 Aligned with FarCom 300 Cogmind --------- Core Integrity 0/850 Matter 251/300 Energy 27/100 System Corruption 70% Temperature Cool (0) Movement Flying (120) Ox1 Location -6/Factory Parts ------- > --- POWER (2) -------- (None) > --- PROPULSION (5) --- Xenon Bombardment Thruster > --- UTILITY (4) ------ Medium Storage Unit Advanced Signal Interpreter > --- WEAPON (4) ------- (None) > --- INVENTORY (10) --- Improved Deuterium Engine Heavy Deuterium Engine Improved Heat Sink Compact Matter Pod (90) Advanced Weight Redist. System Improved Propulsion Shielding Beam Rifle Improved Datajack Peak State ------------ > --- POWER ------------ Micro Nuclear Core Angular Momentum Engine > --- PROPULSION ------- Light Treads Advanced Treads Armored Wheel Armored Wheel Armored Wheel > --- UTILITY ---------- Improved Heat Sink Huge Storage Unit Advanced Signal Interpreter Improved Medium Armor Plating > --- WEAPON ----------- Field Laser Gatling Laser Latent Energy Streamer Magnetic Acceleration Cannon > --- INVENTORY -------- Improved Deuterium Engine Improved Deuterium Engine Light Antimatter Reactor Cesium-ion Thruster Cesium-ion Thruster Cesium-ion Thruster Xenon Bombardment Thruster Improved Heat Sink Medium Storage Unit Energy Well Compact Matter Pod Advanced Weight Redist. System Improved Reaction Control System Improved Propulsion Shielding Improved Light Armor Plating Hacking Suite System Shield Drone Bay Beam Rifle Magnetic Acceleration Cannon Mini Grenade Launcher Mini Grenade Launcher Improved Datajack Mining Laser [Rating: 62] Favorites ----------- Power Light Ion Engine Engine Light Ion Engine Power Core Light Nuclear Core Propulsion Armored Wheel Treads Light Treads Leg Aluminum Leg Wheel Armored Wheel Flight Unit Cesium-ion Thruster Utility Huge Storage Unit Device Improved Heat Sink Storage Huge Storage Unit Processor Advanced Signal Interpreter Protection Improved Medium Armor Plating Weapon Light Cannon Energy Gun Gatling Laser Energy Cannon Latent Energy Streamer Ballistic Gun Enhanced Autogun Ballistic Cannon Light Cannon Special Weapon Mining Laser Slashing Weapon Greatsword Build | -11 -10 -10 -10 -9 -8 -7 -6 ------- Run | Yrd Mat Min Exi Min Mat Fac Fac Slots Evolved 8 | . . . . . 4 2 2 Power 1 | . . . . . 1 . . Propulsion 3 | . . . . . 1 1 1 Utility 2 | . . . . . 1 . 1 Weapon 2 | . . . . . 1 1 . Parts Attached 51 | 6 12 . . . 11 5 17 Power 9 | 1 . . . . 3 2 3 Engine 6 | 1 . . . . 1 2 2 Core 3 | . . . . . 2 . 1 Reactor . | . . . . . . . . Propulsion 16 | 2 6 . . . 3 1 4 Treads 4 | . 3 . . . . 1 . Leg 2 | 2 . . . . . . . Wheel 7 | . 3 . . . 3 . 1 Hover . | . . . . . . . . Flight 3 | . . . . . . . 3 Utility 9 | 1 3 . . . 2 . 3 Device 2 | . 1 . . . . . 1 Storage 3 | 1 2 . . . . . . Processor 2 | . . . . . 1 . 1 Hackware . | . . . . . . . . Protection 2 | . . . . . 1 . 1 Artifact . | . . . . . . . . Weapon 17 | 2 3 . . . 3 2 7 Energy Gun 7 | 2 1 . . . 1 1 2 Energy Cannon 2 | . . . . . 1 . 1 Ballistic Gun 1 | . . . . . 1 . . Ballistic Cannon 5 | . 2 . . . . 1 2 Launcher . | . . . . . . . . Special Weapon 1 | . . . . . . . 1 Impact Weapon . | . . . . . . . . Slashing Weapon 1 | . . . . . . . 1 Piercing Weapon . | . . . . . . . . Special Melee Weapon . | . . . . . . . . Unidentified Prototypes 2 | . . . . . 2 . . Parts Lost 27 | . 2 . . 1 3 1 20 Power 5 | . . . . 1 1 . 3 Propulsion 8 | . 1 . . . 1 . 6 Utility 3 | . . . . . . . 3 Weapon 11 | . 1 . . . 1 1 8 Highest Loss Streak 11 | . 1 . . 1 3 1 11 To Critical Strikes . | . . . . . . . . Average Backups 20 | 4 11 21 22 22 24 24 24 Power 2 | . 1 3 3 3 2 2 2 Propulsion 5 | 3 5 6 6 6 6 6 4 Utility 6 | . 2 4 4 4 6 9 10 Weapon 6 | . 2 8 8 9 9 7 5 Tool/Special . | . . . . . . . . Unused Backups 25 | . 1 . 1 . 4 1 18 Power 5 | . 1 . . . 1 . 3 Propulsion 1 | . . . . . . . 1 Utility 12 | . . . 1 . 1 . 10 Weapon 6 | . . . . . 2 1 3 Tool/Special 1 | . . . . . . . 1 Average Slot Usage (%) 92 | . 97 100 100 85 91 92 88 Engine 8 | . 13 14 14 . 2 7 9 Core 2 | . . . . . 14 7 2 Treads 5 | . 11 . . . . 5 11 Leg 1 | . 9 . . . . . . Wheel 21 | . 6 28 28 28 25 23 17 Device 9 | . 12 14 14 14 4 . 5 Storage 10 | . 14 14 14 14 9 7 6 Processor 2 | . . . . . 4 7 6 Protection 2 | . . . . . 8 7 4 Energy Gun 6 | . 13 . . . 2 10 11 Ballistic Cannon 17 | . 14 28 28 28 14 13 5 Peak Build Rating 62 | 6 13 13 14 14 31 40 62 Average Rating 25 | 4 10 13 13 13 27 36 52 On Entrance 15 | . 6 13 13 14 13 28 40 Avg Prop Armor Cover (%) 9 | . . . . . . 5 10 Naked Turns . | . . . . . . . . Heaviest Build 135 | 11 90 90 90 87 109 117 135 Greatest Support 42 | 20 40 22 22 22 40 40 42 Greatest Overweight (x) 36 | . 4 4 4 3 3 2 36 Average Overweight (x) 2 | . . 4 4 3 2 2 2 Largest Inventory Capacity 25 | 8 25 25 25 25 25 25 25 Average Capacity 22 | 6 14 25 25 25 25 25 24 Most Carried 25 | 6 22 22 23 22 25 25 25 Average Carried 20 | 5 11 21 22 22 24 24 24 Final Capacity 25 | 8 25 25 25 25 25 25 10 Final Carried 25 | 6 21 22 22 22 25 25 8 Class Distribution -------------------- 64% | Mutant 30% | Skirmisher 3% | Scavenger-Mutant Dominant Class ---------------- Mutant | -10/Materials Mutant | -10/Mines Mutant | -10/Exiles Mutant | -9/Mines Scavenger-Mutant | -8/Materials Skirmisher | -7/Factory Skirmisher | -6/Factory Resources | -11 -10 -10 -10 -9 -8 -7 -6 ----------- Run | Yrd Mat Min Exi Min Mat Fac Fac Matter Collected 1561 | 246 182 60 . 122 209 30 712 Remotely . | . . . . . . . . Salvage Created 2540 | . 538 . . 62 304 54 1582 Parts 126 | . 29 . . 10 19 4 64 Haulers Intercepted 3 | . 2 . . . . . 1 Recyclers Shooed 1 | . . . . . . . 1 Parts Field Recycled . | . . . . . . . . Retrieved Matter . | . . . . . . . . Parts Self-Destructed . | . . . . . . . . Prevented . | . . . . . . . . Parts Restored . | . . . . . . . . Kills | -11 -10 -10 -10 -9 -8 -7 -6 ------- Run | Yrd Mat Min Exi Min Mat Fac Fac Combat Hostiles Destroyed 44 | . 13 . . 6 9 . 16 Guns 17 | . 4 . . . 7 . 6 Cannons 20 | . 9 . . 6 2 . 3 AOE 5 | . . . . . . . 5 Classes Destroyed 12 | . 5 . . . 2 . 5 Worker 7 | . 1 . . . . . 6 Builder 1 | . . . . . . . 1 Tunneler 1 | . . . . . . . 1 Hauler 3 | . 2 . . . . . 1 Recycler 2 | . . . . . . . 2 Mechanic 1 | . . . . . . . 1 Watcher 5 | . 1 . . . . 2 2 Swarmer 13 | . 3 . . 6 4 . . Grunt 18 | . 10 . . . 1 . 7 Sentry 6 | . . . . . 3 . 3 Hunter 4 | . . . . . 1 . 3 Programmer 3 | . . . . . . . 3 Best Kill Streak 6 | . 3 . . 2 6 1 6 Combat Bots Only 6 | . 3 . . 2 6 . 6 Max Kills in Single Turn 2 | . 2 . . 1 1 1 2 Gunslinging . | . . . . . . . . Exploded 1 | . . . . . . . 1 Melee . | . . . . . . . . Uniques/NPCs Destroyed . | . . . . . . . . Combat | -11 -10 -10 -10 -9 -8 -7 -6 -------- Run | Yrd Mat Min Exi Min Mat Fac Fac Hostile Shots Fired 523 | . 68 . . 28 54 21 352 Missed 167 | . 19 . . 9 6 9 124 Hits 356 | . 49 . . 19 48 12 228 Projectile 356 | . 49 . . 19 48 12 228 AOE 1 | . . . . . . . 1 Critical Strikes 8 | . . . . . 1 . 7 Damage Taken 4831 | . 573 . . 149 710 120 3279 Core 1232 | . 90 . . 6 281 . 855 Absorbed by Shields . | . . . . . . . . Core Remaining (%) 77 | 100 . . . 61 48 100 . Volleys Fired 132 | . 51 . . 16 22 4 39 Largest 4 | . 2 . . 2 3 4 4 Hottest 247 | . 90 . . 60 135 205 247 Shots Fired 317 | . 101 . . 32 58 16 110 Gun 142 | . 49 . . . 33 8 52 Cannon 174 | . 52 . . 32 25 8 57 Launcher . | . . . . . . . . Special 1 | . . . . . . . 1 Kinetic 167 | . 52 . . 32 45 8 30 Thermal 105 | . 42 . . . 13 4 46 Explosive . | . . . . . . . . Electromagnetic 45 | . 7 . . . . 4 34 Robot Hit Streak 9 | . 6 . . 2 9 3 9 Robot Miss Streak 9 | . 7 . . 9 7 5 8 Penetration Max . | . . . . . . . . Secondary Targets 1 | . 1 . . . . . . Max Gunslinging Chain 1 | . 1 . . . . . . Shots Hit Robots 159 | . 57 . . 11 29 7 55 Core Hits 116 | . 24 . . 5 17 3 67 Critical Kills . | . . . . . . . . Critical Parts Destroyed . | . . . . . . . . Critical Strikes 3 | . 2 . . . . 1 . Burn 2 | . 2 . . . . . . Blast 1 | . . . . . . 1 . Melee Attacks 7 | . . . . . . . 7 Impact . | . . . . . . . . Slashing 7 | . . . . . . . 7 Piercing . | . . . . . . . . Sneak Attacks . | . . . . . . . . Combat Hostiles . | . . . . . . . . Follow-up Attacks . | . . . . . . . . Damage Inflicted 5918 | . 866 . . 206 499 84 4263 Guns 1203 | . 351 . . . 333 10 509 Cannons 1401 | . 510 . . 206 166 74 445 Explosions 3253 | . . . . . . . 3253 Melee 54 | . . . . . . . 54 Ramming 7 | . 5 . . . . . 2 Kinetic 1474 | . 510 . . 206 333 74 351 Thermal 1206 | . 287 . . . 166 10 743 Explosive 425 | . . . . . . . 425 Electromagnetic 2752 | . 64 . . . . . 2688 Impact . | . . . . . . . . Slashing 54 | . . . . . . . 54 Piercing . | . . . . . . . . Highest Corruption 70 | . . . . . . . 70 Average Corruption 37 | . . . . . . . 37 Corruption Purged . | . . . . . . . . Corruption Blocked . | . . . . . . . . Effects 47 | . . . . . . . 47 Message Errors 11 | . . . . . . . 11 Matter Fused 11 | . . . . . . . 11 Heat Flow Errors 3 | . . . . . . . 3 Energy Discharges 4 | . . . . . . . 4 Parts Rejected 1 | . . . . . . . 1 Data Loss (minor) 4 | . . . . . . . 4 Misfires 4 | . . . . . . . 4 Misdirections 4 | . . . . . . . 4 Weapon Failures 5 | . . . . . . . 5 Overload Shots . | . . . . . . . . Overflow Damage 96 | . . . . 17 . . 79 Projectiles 23 | . . . . 17 . . 6 Explosions 64 | . . . . . . . 64 Melee 9 | . . . . . . . 9 Knockbacks 9 | . 3 . . 3 1 . 2 Impact 1 | . . . . . . . 1 Kinetic 8 | . 3 . . 3 1 . 1 Secondary . | . . . . . . . . Self-Inflicted Damage 167 | . . . . . . . 167 Shots 2 | . . . . . . . 2 Rammed 2 | . 1 . . . . . 1 Targets Rammed 2 | . 1 . . . . . 1 Kicked . | . . . . . . . . Crushed . | . . . . . . . . Highest Temperature 672 | . 248 . . . 672 415 495 Average Temperature 189 | . 123 . . . 292 162 143 Received Heat Transfer 846 | . 285 . . . 108 51 402 Effects 32 | . . . . . 26 2 4 Shutdowns 14 | . . . . . 9 2 3 Energy Bleed 1 | . . . . . 1 . . Matter Decay 5 | . . . . . 5 . . Short Circuit 2 | . . . . . 2 . . Damage (minor) 3 | . . . . . 2 . 1 Damage (major) 5 | . . . . . 5 . . Damage (core) 2 | . . . . . 2 . . Siege Activations . | . . . . . . . . Martial Activations . | . . . . . . . . Shielding Activations . | . . . . . . . . Robots Disrupted . | . . . . . . . . Combat Hostiles . | . . . . . . . . Robots Corrupted 2 | . . . . . . . 2 Combat Hostiles 2 | . . . . . . . 2 Parts Fried 10 | . . . . . . . 10 Impact Corruptions . | . . . . . . . . Robots Melted . | . . . . . . . . Combat Hostiles . | . . . . . . . . Parts Melted 2 | . 1 . . . . . 1 Heat Transferred 2635 | . 928 . . . 375 25 1307 Parts Sabotaged . | . . . . . . . . Parts Stolen . | . . . . . . . . Parts Stripped . | . . . . . . . . Power Chain Reactions . | . . . . . . . . Latent Energy Used 3347 | . . . . . . . 3347 LE Corruption 59 | . . . . . . . 59 Alert | -11 -10 -10 -10 -9 -8 -7 -6 ------- Run | Yrd Mat Min Exi Min Mat Fac Fac Maximum Alert Level 4 | . . . . . . . 4 Low Security (%) 82 | 100 100 100 . 100 100 100 40 Level 1 . | . . . . . . . 2 Level 2 7 | . . . . . . . 25 Level 3 8 | . . . . . . . 27 Level 4 1 | . . . . . . . 3 Level 5 . | . . . . . . . . High Security . | . . . . . . . . Max Security . | . . . . . . . . Peak Influence 1132 | . 114 39 . 60 151 50 1132 Initial 50 | . . 39 . . . 50 2 Average 148 | . 36 8 . 9 37 11 438 Influence Increases 2383 | . 394 . . 140 253 45 1551 Destroy 0b10 Robot/C 880 | . 260 . . 120 180 . 320 Destroy 0b10 Robot/NC 100 | . 20 . . . . 10 70 Destroy Leader 266 | . 76 . . 20 50 4 116 Successful Hack 41 | . 7 . . . 6 . 28 Disable Machine 405 | . . . . . . 15 390 Anti-Garrison Action 300 | . . . . . . . 300 Destroy Structure 271 | . 1 . . . 2 1 267 Lose Combat Pursuer 120 | . 30 . . . 15 15 60 Influence Decreases 1343 | . 292 102 . 140 142 149 518 Entered New Map 129 | . . 63 . . . 61 5 Time Decay 964 | . 272 39 . 140 122 78 313 Lost Part 240 | . 20 . . . 10 10 200 Lost Ally 10 | . . . . . 10 . . Squads Dispatched 13 | . 3 . . . . 1 9 Investigation 1 | . 1 . . . . . . Extermination 3 | . . . . . . 1 2 Reinforcement 4 | . 2 . . . . . 2 Assault 4 | . . . . . . . 4 Garrison 1 | . . . . . . . 1 Intercept . | . . . . . . . . Searches Triggered . | . . . . . . . . Construction Impeded 1 | . . . . . . . 1 Haulers Reinforced 1 | . . . . . . . 1 Active Scanning Responses . | . . . . . . . . Cargo Convoy Interrupts . | . . . . . . . . Stealth | -11 -10 -10 -10 -9 -8 -7 -6 --------- Run | Yrd Mat Min Exi Min Mat Fac Fac Distress Signals 6 | . 1 . . . 2 . 3 Communications Jammed . | . . . . . . . . Distress Signals . | . . . . . . . . Times Spotted 70 | . 19 . . 4 14 5 28 Peak Tracking Total 9 | . 4 . . 3 5 2 9 Tactical Retreats 7 | . 2 . . . 1 1 3 Traps | -11 -10 -10 -10 -9 -8 -7 -6 ------- Run | Yrd Mat Min Exi Min Mat Fac Fac Traps Triggered 6 | . 3 . . . . . 3 Indirectly 2 | . . . . . . . 2 Trap Hack Attempts . | . . . . . . . . Triggered . | . . . . . . . . Disarmed . | . . . . . . . . Reprogrammed . | . . . . . . . . Reused . | . . . . . . . . Traps Extracted . | . . . . . . . . Installed 1 | . . . . 1 . . . Triggered . | . . . . . . . . Machines | -11 -10 -10 -10 -9 -8 -7 -6 ---------- Run | Yrd Mat Min Exi Min Mat Fac Fac Machines Disabled 29 | . . . . . . 1 28 Max in Single Turn 4 | . . . . . . 1 4 Garrison Access 2 | . . . . . . . 2 Machines Repaired . | . . . . . . . . Machines Dismantled . | . . . . . . . . Machines Sabotaged . | . . . . . . . . Overloaded Fab Kills . | . . . . . . . . Hacking | -11 -10 -10 -10 -9 -8 -7 -6 --------- Run | Yrd Mat Min Exi Min Mat Fac Fac Machines Accessed 7 | . 3 . 2 . 1 . 1 Terminals 3 | . 2 . . . 1 . . Fabricators . | . . . . . . . . Repair Stations . | . . . . . . . . Recycling Units 1 | . 1 . . . . . . Scanalyzers 1 | . . . . . . . 1 Garrison Access . | . . . . . . . . Total Hacks 11 | . 5 . 2 . 1 . 3 Successful 7 | . 2 . 2 . 1 . 2 Failed 4 | . 3 . . . . . 1 Catastrophic 2 | . 1 . . . . . 1 Database Lockouts . | . . . . . . . . Manual 7 | . 5 . 1 . 1 . . Terminals 5 | . 4 . . . 1 . . Fabricators . | . . . . . . . . Repair Stations . | . . . . . . . . Recycling Units 1 | . 1 . . . . . . Scanalyzers 3 | . . . . . . . 3 Garrison Access . | . . . . . . . . Terminal Hacks 2 | . . . 2 . . . . Record 1 | . . . 1 . . . . Proto ID Catalog 1 | . . . 1 . . . . Fabricator Hacks . | . . . . . . . . Repair Station Hacks . | . . . . . . . . Recycling Unit Hacks . | . . . . . . . . Scanalyzer 2 | . . . . . . . 2 Retrieve Study 2 | . . . . . . . 2 Garrison Access Hacks . | . . . . . . . . Unauthorized Hacks 3 | . 2 . . . 1 . . Terminals 2 | . 1 . . . 1 . . Assimilate 1 | . . . . . 1 . . Botnet 1 | . 1 . . . . . . Fabricators . | . . . . . . . . Repair Stations . | . . . . . . . . Recycling Units 1 | . 1 . . . . . . Monitor 1 | . 1 . . . . . . Scanalyzers . | . . . . . . . . Garrison Access . | . . . . . . . . Data Cores Recovered . | . . . . . . . . Used . | . . . . . . . . Hacking Detections 4 | . 3 . . . . . 1 Full Trace Events . | . . . . . . . . Feedback Events . | . . . . . . . . Feedback Blocked . | . . . . . . . . Robot Schematics Acquired . | . . . . . . . . Robots Built . | . . . . . . . . Authchips . | . . . . . . . . Time . | . . . . . . . . Total Robot Build Rating . | . . . . . . . . Part Schematics Acquired . | . . . . . . . . Parts Built . | . . . . . . . . Authchips . | . . . . . . . . Time . | . . . . . . . . Total Part Build Rating . | . . . . . . . . Part Studies Acquired 2 | . . . . . . . 2 Parts Repaired . | . . . . . . . . Time . | . . . . . . . . Parts Recycled . | . . . . . . . . Recycled Matter . | . . . . . . . . Retrieved Matter . | . . . . . . . . Retrieved Components . | . . . . . . . . Parts Scanalyzed . | . . . . . . . . Part Schematics Acquired . | . . . . . . . . Parts Damaged . | . . . . . . . . Bothacking | -11 -10 -10 -10 -9 -8 -7 -6 ------------ Run | Yrd Mat Min Exi Min Mat Fac Fac Used RIF Installer . | . . . . . . . . Robots Hacked . | . . . . . . . . Non-combat . | . . . . . . . . Combat . | . . . . . . . . Robot Hacks Applied . | . . . . . . . . Relay Couplers Released 2 | . . . . . . . 2 Machine Destruction 2 | . . . . . . . 2 Fabnet Peak Effective % . | . . . . . . . . Robots Rewired . | . . . . . . . . Allies Hacked . | . . . . . . . . Hacks Repelled . | . . . . . . . . Allies | -11 -10 -10 -10 -9 -8 -7 -6 -------- Run | Yrd Mat Min Exi Min Mat Fac Fac Total Allies 1 | . . . . . 1 . . Largest Group 1 | . . . . . 1 . . Highest-Rated Group 10 | . . . . . 10 . . Highest-Rated Ally 10 | . . . . . 10 . . Total Orders . | . . . . . . . . Ally Attacks . | . . . . . . . . Total Damage . | . . . . . . . . Kills . | . . . . . . . . Allies Corrupted . | . . . . . . . . Allies Melted . | . . . . . . . . Intel | -11 -10 -10 -10 -9 -8 -7 -6 ------- Run | Yrd Mat Min Exi Min Mat Fac Fac Active Infowar (turns) . | . . . . . . . . Robot Analysis Total . | . . . . . . . . Derelict Logs Recovered 2 | . . 1 . 1 . . . Drone Launches . | . . . . . . . . Drone Recoveries . | . . . . . . . . Exploration | -11 -10 -10 -10 -9 -8 -7 -6 ------------- Run | Yrd Mat Min Exi Min Mat Fac Fac Turns Passed 5064 | 70 876 216 762 994 526 319 1301 Spaces Moved 3172 | 53 451 149 525 665 322 239 768 Core 12 | 11 . . . . . . 1 Treads 164 | . 157 . . . . . 7 Legs 232 | 42 190 . . . . . . Wheels 2739 | . 104 149 525 665 322 239 735 Hover . | . . . . . . . . Flight 25 | . . . . . . . 25 Fastest Speed 34 | 50 120 145 145 130 120 123 34 Average Speed 135 | 105 144 145 145 130 122 123 138 Slowest Speed 1850 | 120 320 145 145 130 140 123 1850 Overloaded Moves . | . . . . . . . . Propulsion Burnouts . | . . . . . . . . Robots Hopped 2 | . . . . . . . 2 Potential Cave-ins . | . . . . . . . . Cave-ins Triggered . | . . . . . . . . Exploration Rate (%) 43 | 3 71 30 90 94 31 8 24 Regions Visited 7 Branch Regions 3 Pre-discovered Areas 2 | . . 1 . 1 . . . Known Exits Taken 2 | . . . . . 1 1 . Unknown Exits Taken 5 | 1 1 1 1 1 . . . Scrap Searched 2 | . . 1 . 1 . . . Spaces Dug 3 | . . . . . . . 3 Terrain Destroyed 321 | . . . . . . . 321 Melee 3 | . . . . . . . 3 Projectile 13 | . . . . . . . 13 AOE 305 | . . . . . . . 305 Terrain Rammed . | . . . . . . . . Walls Destroyed . | . . . . . . . . Machines Disabled . | . . . . . . . . Actions | -11 -10 -10 -10 -9 -8 -7 -6 --------- Run | Yrd Mat Min Exi Min Mat Fac Fac Total 3640 | 64 569 149 526 762 414 254 902 Wait 181 | . 21 . . 81 38 . 41 Move 3162 | 52 450 148 524 664 321 238 765 Hop 1 | . . . . . . . 1 Pick Up 60 | 6 24 1 1 . 15 3 10 Fast Attach 17 | 6 5 . . . 2 2 2 Attach 25 | . 5 . . . 6 1 13 Detach 1 | . . . . . . . 1 Swap 18 | . 6 . . . 3 2 7 Drop 25 | . 6 . 1 . 7 4 7 Fire 132 | . 51 . . 16 22 4 39 Melee 7 | . . . . . . . 7 Ram 1 | . . . . . . . 1 Kick . | . . . . . . . . Crush 1 | . 1 . . . . . . Escape Stasis 8 | . . . . . . . 8 Rewire . | . . . . . . . . Trap 1 | . . . . 1 . . . Miscellaneous . | . . . . . . . . Route ------- -11/Scrapyard -10/Materials (discovered 4 exits: [*Mat x2] / [*Min x2]) -10/Mines (discovered 2 exits: [*Mat] / *Exi) -10/Exiles -9/Mines -8/Materials (discovered 2 exits: *Fac x2) -7/Factory -6/Factory History --------- Turn | Location | Event 13 | -11/Scrapyard | Discovered new exit (range 15) 71 | -11/Scrapyard | Entered Materials 305 | -10/Materials | Discovered new exit (range 6) 317 | -10/Materials | Build established: Mutant 605 | -10/Materials | Discovered new exit (range 16) 776 | -10/Materials | Discovered new exit (range 13) 920 | -10/Materials | Discovered new exit (range 6) 947 | -10/Materials | Entered Mines 965 | -10/Mines | Learned location of Zion (-7) 965 | -10/Mines | Discovered new exit (range 8) 1076 | -10/Mines | Deemed a non-threat by the Exiles lab entrance 1076 | -10/Mines | Discovered new exit (range 5) 1126 | -10/Mines | Assembled infested the area 1163 | -10/Mines | Entered Exiles 1200 | -10/Exiles | Met 8R-AWN 1224 | -10/Exiles | Met EX-HEX 1317 | -10/Exiles | Met EX-BIN 1401 | -10/Exiles | Aligned with FarCom system 1403 | -10/Exiles | Given EX-Vault access code 1451 | -10/Exiles | Opened EX-Vault 1514 | -10/Exiles | Warned to stay clear of 0b10 Research branches 1543 | -10/Exiles | Found Latent Energy Streamer 1613 | -10/Exiles | Met EX-DEC 1716 | -10/Exiles | Visited The Gauntlet 1907 | -10/Exiles | Discovered new exit (range 12) 1925 | -10/Exiles | Left Exiles lab with Latent Energy Streamer 1925 | -10/Exiles | Entered Mines 2088 | -9/Mines | Found a hidden stash of uninstalled traps 2387 | -9/Mines | Discovered new exit (range 5) 2919 | -9/Mines | Entered Materials 2919 | -8/Materials | Evolved 4 slots: Power x1, Propulsion x1, Utility x1, Weapon x1 3131 | -8/Materials | Discovered new exit (range 5) 3170 | -8/Materials | Identified exit to Factory 3295 | -8/Materials | Lost 3 parts (1p1n1w) 3345 | -8/Materials | Core integrity fell below 50% 3439 | -8/Materials | Discovered exit to Factory (range 4) 3445 | -8/Materials | Entered Factory 3445 | -7/Factory | Evolved 2 slots: Propulsion x1, Weapon x1 3745 | -7/Factory | Discovered new exit (range 11) 3756 | -7/Factory | Identified exit to Factory 3764 | -7/Factory | Entered another Factory area 3764 | -6/Factory | Evolved 2 slots: Propulsion x1, Utility x1 3785 | -6/Factory | Build established: Skirmisher 4305 | -6/Factory | System corruption reached 10% 4515 | -6/Factory | System corruption reached 30% 4907 | -6/Factory | Lost 5 parts (2n1u2w) 4971 | -6/Factory | Garrison activated, responded to threat 5035 | -6/Factory | Core integrity fell below 50% 5050 | -6/Factory | Core integrity fell below 20% 5065 | -6/Factory | Destroyed by P-60 Hacker with Shock Rifle Last Messages --------------- 05047_ L-41 Fighter unfolds itself. 05047_ B-48 Gladiator unfolds itself. 05047_ G-50 Soldier unfolds itself. 05047_ E-15 Imp unfolds itself. 05047_ Cesium-ion Thruster destroyed. 05048_ K-01 Serf collects debris. 05049_ Acquired Xenon Bombardment Thruster+. 05049_ E-15 Imp destroyed. 05049_ K-01 Serf collects debris. 05050_ R-10 Processor collects System Shield. 05051_ K-01 Serf collects debris. 05051_ U-05 Engineer builds a Wall. 05053_ C0KKP4XV<8AW#DR8VDCQ